[Event "Icelandic Open 2019"]
[Site "Akureyri"]
[Date "2019.05.26"]
[Round "2.10"]
[White "Thorfinnsson, Bjorn"]
[Black "Jonsson, Gauti Pall"]
[Result "1-0"]
[ECO "A07"]
[WhiteElo "2389"]
[BlackElo "2033"]
[Annotator "NA"]
[PlyCount "65"]
[EventDate "2019.05.25"]
[EventType "swiss"]
[EventCountry "ISL"]
[SourceTitle "playchess.com"]
[Source "ChessBase"]
[SourceQuality "1"]
[TimeControl "40/5400+30:1800+30"]

1. Nf3 {[%emt 0:06:25]} (1. d4 Nc6 2. c4 d5 3. cxd5 Qxd5 4. e3 e5 5. Nc3 Bb4 6. Bd2 Bxc3 7. Bxc3 exd4 8. Ne2 Bg4 9. f3 Bxf3 10. gxf3 Qxf3 {[%mdl 64] [#] Double Attack. D07: Queen's Gambit: Chigorin Defence} 11. Nxd4 ({White should try} 11. Bxd4 $16 {Rg1 is the strong threat.} Nf6 12. Ng3 Nxd4 13. exd4 Qe3+ 14. Qe2 Qxe2+ 15. Bxe2) 11... Qxh1 $11 12. Nxc6 Nf6 $1 ({Don't go for} 12... Qxc6 $2 13. Bxg7 Rd8 14. Qe2 $18) 13. Na5 {Black must now prevent Qa4+.} Qe4 $1 {[#]} ({Much weaker is} 13... Qxh2 $6 14. Qa4+ c6 15. O-O-O $16) {Predecessor:} 14. Qe2 $146 Qh4+ 15. Qf2 Qxf2+ 16. Kxf2 Ne4+ 17. Ke2 O-O-O 18. Bg2 {1-0 (38) Linna,A (2505)-Gather,J (2473) ICCF corr 1999}) 1... Nf6 {[%emt 0:00:51]} 2. g3 {[%emt 0:00:09]} d5 {[%emt 0:00:21]} 3. Bg2 {[%emt 0:00:07]} Bg4 {[%emt 0:01:26]} 4. c4 {[%emt 0:00:29]} e6 {[%emt 0:03:17]} 5. Qb3 {[%emt 0:02:29]} Nbd7 {[%emt 0:09:08]} 6. Qxb7 {[%emt 0:00:39]} Bc5 {[%emt 0:00:49]} 7. Qb3 {[%emt 0:01:40]} Rb8 {[%emt 0:01:36]} 8. Qc2 {[%emt 0:00:59]} O-O {[%emt 0:01:38]} 9. O-O {[%emt 0:00:13]} Qe7 {[%emt 0:08:39]} 10. d3 {[%emt 0:02:01]} c6 {[%emt 0:01:24]} 11. Nbd2 {[%emt 0:00:26]} d4 {[%emt 0:05:19]} 12. b4 {[%emt 0:05:41]} Bxf3 {[%emt 0:03:35]} 13. Bxf3 {[%emt 0:00:31]} Bxb4 {[%emt 0:00:27]} 14. Bxc6 {[%emt 0:01:14]} Bc3 {[%emt 0:03:04]} 15. Rb1 {[%emt 0:00:56]} Ne5 {[%emt 0:00:46]} 16. Bg2 {[%emt 0:00:20]} h5 {[%emt 0:04:40]} 17. Nb3 {[%emt 0:01:23]} Ng6 {[%emt 0:03:23]} 18. Bb2 {[%emt 0:01:05]} Bxb2 {[%emt 0:00:17]} 19. Rxb2 {[%emt 0:00:05]} e5 {[%emt 0:00:21]} 20. Rfb1 {[%emt 0:00:06]} h4 {[%emt 0:00:30]} 21. Nd2 {[%emt 0:00:09]} Rxb2 {[%emt 0:02:38]} 22. Qxb2 {[%emt 0:00:08]} Qe6 {[%emt 0:00:32]} 23. Qa3 {[%emt 0:00:38]} Qg4 {[%emt 0:00:31]} 24. Bf3 {[%emt 0:00:27]} Qg5 {[%emt 0:00:33]} 25. Qc1 {[%emt 0:03:05]} Nf4 {[%emt 0:06:24]} 26. Kf1 {[%emt 0:02:27]} hxg3 {[%emt 0:01:22]} 27. hxg3 {[%emt 0:00:09]} N4h5 {[%emt 0:03:17]} 28. Ne4 {[%emt 0:01:40]} Qf5 {[%emt 0:03:45]} 29. Kg2 {[%emt 0:02:12]} g6 {[%emt 0:03:19]} 30. Qh6 {[%emt 0:03:06]} Ng4 {[%emt 0:06:48]} 31. Bxg4 {[%emt 0:01:14]} Qxg4 {[%emt 0:00:07]} 32. Rh1 {[%emt 0:02:11]} f5 {[%emt 0:02:19]} 33. f3 {[%emt 0:00:43]} 1-0

[Event "Icelandic Open 2019"]
[Site "Akureyri"]
[Date "2019.05.26"]
[Round "2.11"]
[White "Ragnarsson, Johann"]
[Black "Stefansson, Vignir Vatnar"]
[Result "1/2-1/2"]
[ECO "D07"]
[WhiteElo "1968"]
[BlackElo "2291"]
[Annotator "NA"]
[PlyCount "64"]
[EventDate "2019.05.25"]
[EventType "swiss"]
[EventCountry "ISL"]
[SourceTitle "playchess.com"]
[Source "ChessBase"]
[SourceQuality "1"]
[TimeControl "40/5400+30:1800+30"]

1. d4 {[%emt 0:00:32]} (1. Nf3 Nf6 2. g3 d5 3. Bg2 Bg4 4. c4 e6 (4... c6 5. Ne5 Be6 6. cxd5 Bxd5 7. Nf3 c5 8. Nc3 Bc6 9. O-O e6 10. Re1 Nbd7 11. e4 e5 12. d3 Be7 13. Nh4 O-O 14. Nf5 Re8 15. f4 Bf8 {1-0 (57) Shimanov,A (2620)-Motylev,A (2661) Saint Louis 2018}) 5. Qb3 Nbd7 6. Qxb7 {A07: Réti Opening: New York and Capablanca Systems} Bc5 $146 ({Predecessor:} 6... Bd6 7. O-O O-O 8. cxd5 Nc5 9. Qb5 exd5 10. d4 Rb8 11. Qa5 Nce4 12. a3 {½-½ (60) Paan,K (1729)-Petrov,D (2247) Tallinn 2015}) 7. Qb3 (7. cxd5 $16 Rb8 8. Qa6) 7... Rb8 $11 8. Qc2 O-O (8... Bxf3 $11 {remains equal.} 9. Bxf3 Ne5) 9. O-O) 1... Nc6 {[%emt 0:00:12]} 2. c4 {[%emt 0:02:01]} d5 {[%emt 0:04:19]} 3. cxd5 {[%emt 0:00:26]} Qxd5 {[%emt 0:00:03]} 4. e3 {[%emt 0:00:11]} e5 {[%emt 0:00:01]} 5. Nc3 {[%emt 0:00:09]} Bb4 {[%emt 0:00:03]} 6. Bd2 {[%emt 0:00:09]} Bxc3 {[%emt 0:00:02]} 7. Bxc3 {[%emt 0:00:09]} exd4 {[%emt 0:01:05]} 8. Ne2 {[%emt 0:07:10]} Bg4 {[%emt 0:00:25]} 9. f3 {[%emt 0:00:07]} Bxf3 {[%emt 0:00:04]} 10. gxf3 {[%emt 0:00:08]} Qxf3 {[%emt 0:00:03]} 11. Nxd4 {[%emt 0:00:11]} Qxh1 {[%emt 0:00:07]} 12. Nxc6 {[%emt 0:00:07]} Nf6 {[%emt 0:00:04]} 13. Na5 {[%emt 0:00:09]} Qe4 {[%emt 0:16:35]} 14. Qd4 {[%emt 0:05:26]} O-O {[%emt 0:03:05]} 15. O-O-O {[%emt 0:26:20]} Rfe8 {[%emt 0:01:06]} 16. Bd3 {[%emt 0:15:24]} Qxe3+ {[%emt 0:04:08]} 17. Qxe3 {[%emt 0:02:17]} Rxe3 {[%emt 0:00:02]} 18. Bxf6 {[%emt 0:00:08]} gxf6 {[%emt 0:00:06]} 19. Nxb7 {[%emt 0:00:03]} Rae8 {[%emt 0:02:51]} 20. Rd2 {[%emt 0:04:35]} Rh3 {[%emt 0:03:00]} 21. Kd1 {[%emt 0:10:24]} Re5 {[%emt 0:04:30]} 22. Bf1 {[%emt 0:03:42]} Rh4 {[%emt 0:03:38]} 23. b3 {[%emt 0:00:27]} Reh5 {[%emt 0:04:57]} 24. h3 {[%emt 0:00:23]} Rf4 {[%emt 0:00:24]} 25. Bg2 {[%emt 0:00:18]} Rhf5 {[%emt 0:00:29]} 26. Ke1 {[%emt 0:00:55]} Re5+ {[%emt 0:03:00]} 27. Kd1 {[%emt 0:00:22]} Kg7 {[%emt 0:08:28]} 28. Nd8 {[%emt 0:00:54]} Ref5 {[%emt 0:02:36]} 29. Ke1 {[%emt 0:00:14]} Rc5 {[%emt 0:00:59]} 30. Kd1 {[%emt 0:02:11]} Rc3 {[%emt 0:06:42]} 31. Nc6 {[%emt 0:01:47]} a6 {[%emt 0:01:02]} 32. Ne7 {[%emt 0:04:15]} Rc5 {[%emt 0:01:17]} 1/2-1/2

[Event "Icelandic Open 2019"]
[Site "Akureyri"]
[Date "2019.05.26"]
[Round "2.13"]
[White "Jonsson, Stefan G"]
[Black "Stefansson, Benedikt"]
[Result "1-0"]
[ECO "C06"]
[WhiteElo "1568"]
[BlackElo "1423"]
[Annotator "NA"]
[PlyCount "117"]
[EventDate "2019.05.25"]
[EventType "swiss"]
[EventCountry "ISL"]
[SourceTitle "playchess.com"]
[Source "ChessBase"]
[SourceQuality "1"]
[TimeControl "40/5400+30:1800+30"]

1. e4 {[%emt 0:00:00]} e6 {[%emt 0:00:00]} 2. d4 {[%emt 0:00:00]} d5 {[%emt 0:00:00]} 3. Nd2 {[%emt 0:00:03]} c5 {[%emt 0:00:54]} 4. Ngf3 {[%emt 0:00:22]} Nf6 {[%emt 0:00:16]} 5. e5 {[%emt 0:00:11]} Nfd7 {[%emt 0:00:05]} 6. c3 {[%emt 0:00:13]} Nc6 {[%emt 0:00:32]} 7. Bd3 {[%emt 0:00:52]} Qb6 {[%emt 0:01:37]} 8. Qa4 {[%emt 0:04:20]} cxd4 {[%emt 0:04:32]} 9. cxd4 {[%emt 0:01:47]} Qb4 {[%emt 0:03:49]} 10. Qxb4 {[%emt 0:02:29]} Nxb4 {[%emt 0:00:18]} 11. Bb1 {[%emt 0:00:12]} f6 {[%emt 0:00:09]} 12. O-O {[%emt 0:03:45]} fxe5 {[%emt 0:04:46]} 13. Nxe5 {[%emt 0:05:05]} Nxe5 {[%emt 0:00:12]} 14. dxe5 {[%emt 0:00:07]} Bc5 {[%emt 0:00:05]} 15. a3 {[%emt 0:02:55]} Nc6 {[%emt 0:00:10]} 16. Nf3 {[%emt 0:00:39]} O-O {[%emt 0:00:13]} 17. Re1 {[%emt 0:03:35]} Nd4 {[%emt 0:02:21]} 18. Nxd4 {[%emt 0:05:42]} Bxd4 {[%emt 0:00:09]} 19. Re2 {[%emt 0:00:09]} Bd7 {[%emt 0:00:18]} 20. Bd3 {[%emt 0:00:23]} Rf7 {[%emt 0:02:22]} 21. Kf1 {[%emt 0:04:04]} Ba4 {[%emt 0:09:13]} 22. Bg5 {[%emt 0:02:12]} Raf8 {[%emt 0:06:27]} 23. f3 {[%emt 0:00:40]} h6 {[%emt 0:03:58]} 24. Bh4 {[%emt 0:07:59]} g5 {[%emt 0:01:48]} 25. Bf2 {[%emt 0:06:16]} Bxf2 {[%emt 0:02:24]} 26. Rxf2 {[%emt 0:00:02]} g4 {[%emt 0:00:10]} 27. Ke2 {[%emt 0:00:41]} gxf3+ {[%emt 0:00:32]} 28. gxf3 {[%emt 0:00:51]} Rc8 {[%emt 0:01:13]} 29. Rg1+ {[%emt 0:02:36]} Rg7 {[%emt 0:00:17]} 30. Rxg7+ {[%emt 0:00:37]} Kxg7 {[%emt 0:00:10]} 31. Rg2+ {[%emt 0:00:11]} Kf8 {[%emt 0:03:13]} 32. Rg6 {[%emt 0:01:22]} Kf7 {[%emt 0:09:20]} 33. Rxh6 {[%emt 0:00:24]} Rg8 {[%emt 0:00:07]} 34. Kf2 {[%emt 0:03:25]} Rg5 {[%emt 0:02:41]} 35. f4 {[%emt 0:03:09]} Rg4 {[%emt 0:00:54]} 36. Rf6+ {[%emt 0:03:36]} Ke7 {[%emt 0:00:40]} 37. h3 {[%emt 0:02:16]} Rg7 {[%emt 0:04:48]} 38. Rh6 {[%emt 0:04:33]} Bd1 {[%emt 0:01:08]} 39. Rh8 {[%emt 0:05:13]} Ba4 {[%emt 0:02:36]} 40. Be2 {[%emt 0:00:00]} Be8 {[%emt 0:00:00]} 41. h4 {[%emt 0:06:55]} d4 {[%emt 0:07:22]} 42. Bd3 {[%emt 0:09:46]} Rf7 {[%emt 0:00:26]} 43. Rh7 {[%emt 0:00:57]} Rxh7 {[%emt 0:01:34]} 44. Bxh7 {[%emt 0:00:02]} Bh5 {[%emt 0:00:10]} 45. Bd3 {[%emt 0:01:23]} b6 {[%emt 0:10:05]} 46. Ke1 {[%emt 0:00:32]} Bf3 {[%emt 0:01:29]} 47. Kd2 {[%emt 0:00:23]} Bd5 {[%emt 0:02:07]} 48. Kc2 {[%emt 0:02:00]} Kf7 {[%emt 0:02:44]} 49. h5 {[%emt 0:03:07]} Kg7 {[%emt 0:00:30]} 50. Be2 {[%emt 0:06:10]} Be4+ {[%emt 0:05:12]} 51. Kb3 {[%emt 0:02:08]} d3 {[%emt 0:00:55]} 52. Bd1 {[%emt 0:00:02]} Kf7 {[%emt 0:00:20]} 53. Kc3 {[%emt 0:00:16]} Ke7 {[%emt 0:03:42]} 54. Bg4 {[%emt 0:02:39]} Kf7 {[%emt 0:03:06]} 55. Kd4 {[%emt 0:04:01]} Bh7 {[%emt 0:00:34]} 56. b4 {[%emt 0:00:47]} Ke7 {[%emt 0:06:46]} 57. Ke3 {[%emt 0:03:05]} a6 {[%emt 0:03:21]} 58. Bh3 {[%emt 0:00:15]} Kf7 {[%emt 0:02:13]} 59. Bf1 {[%emt 0:04:38]} 1-0

[Event "Icelandic Open 2019"]
[Site "Akureyri"]
[Date "2019.05.26"]
[Round "2.14"]
[White "Johannsson, Birkir Isak"]
[Black "Sigurdarson, Tomas Veigar"]
[Result "1/2-1/2"]
[ECO "A65"]
[WhiteElo "1981"]
[BlackElo "1994"]
[Annotator "NA"]
[PlyCount "143"]
[EventDate "2019.05.25"]
[EventType "swiss"]
[EventCountry "ISL"]
[SourceTitle "playchess.com"]
[Source "ChessBase"]
[SourceQuality "1"]
[TimeControl "40/5400+30:1800+30"]

1. d4 {[%emt 0:00:00]} Nf6 {[%emt 0:00:00]} 2. c4 {[%emt 0:00:00]} g6 {[%emt 0:00:00]} 3. Nc3 {[%emt 0:00:00]} Bg7 {[%emt 0:00:00]} 4. e4 {[%emt 0:00:00]} d6 {[%emt 0:00:00]} 5. h3 {[%emt 0:00:00]} O-O {[%emt 0:00:32]} 6. Nf3 {[%emt 0:00:05]} Na6 {[%emt 0:00:57]} 7. Bg5 {[%emt 0:00:56]} c5 {[%emt 0:05:06]} 8. d5 {[%emt 0:00:40]} e6 {[%emt 0:00:34]} 9. Bd3 {[%emt 0:01:50]} exd5 {[%emt 0:00:27]} 10. cxd5 {[%emt 0:00:32]} Re8 {[%emt 0:05:27] A65: Modern Benoni: 6 e4} (10... h6 11. Be3 b5 12. O-O c4 13. Bc2 b4 14. Ne2 Re8 15. Ng3 Bd7 16. Rc1 Qa5 17. Bb1 Rac8 18. Nd4 {1-0 (54) Peralta,F (2596)-Grigoryan,K (2592) Barbera del Valles 2014}) 11. O-O {[%emt 0:02:02]} Bd7 {[%emt 0:06:12]} 12. Re1 {[%emt 0:01:30]} Nc7 {[%emt 0:02:08]} 13. a4 {[%emt 0:04:33]} a6 {[%emt 0:01:13]} 14. a5 $146 {[%emt 0:00:11]} ({Predecessor:} 14. Qd2 b5 15. Qf4 b4 16. Nb1 Ncxd5 17. exd5 Rxe1+ 18. Nxe1 Nxd5 19. Qd2 Qe8 20. Nf3 Bc6 {1-0 (29) Horvath,C (2485)-Szirmai,E (2275) Kobanya 1992}) 14... Qb8 {[%emt 0:06:33]} (14... h6 $14 15. Bd2 Bb5) 15. Bf4 {[%emt 0:16:51]} Nb5 {[%emt 0:02:46]} 16. Qb3 {[%emt 0:00:50]} Nxc3 {[%emt 0:09:59]} 17. bxc3 {[%emt 0:01:38]} c4 {[%emt 0:00:27]} 18. Bxc4 {[%emt 0:06:46]} ({Avoid the trap} 18. Qxc4 $2 Bb5 $17) 18... Nxe4 {[%emt 0:00:20]} 19. Re3 {[%emt 0:19:38]} Qc7 {[%emt 0:01:34]} 20. Rae1 {[%emt 0:02:34]} f5 {[%emt 0:05:22]} 21. Ng5 {[%emt 0:05:14]} Nxg5 {[%emt 0:05:16]} 22. Rxe8+ {[%emt 0:05:03]} Bxe8 $14 {[%emt 0:01:45]} 23. Bxg5 {[%emt 0:00:08]} Bf8 {[%emt 0:14:18]} 24. Bf1 {[%emt 0:04:31]} Rc8 {[%emt 0:00:37]} 25. c4 {[%emt 0:02:22]} Bf7 {[%emt 0:01:34]} 26. Qb4 {[%emt 0:02:55]} Rb8 {[%emt 0:02:29]} 27. Rb1 {[%emt 0:00:23]} h6 {[%emt 0:01:26]} 28. Be3 {[%emt 0:00:21]} Bg7 {[%emt 0:01:02]} 29. Bb6 {[%emt 0:00:41]} Qe7 {[%emt 0:01:15]} 30. Ba7 {[%emt 0:01:32]} Re8 {[%emt 0:00:59]} 31. Qxb7 {[%emt 0:01:21]} Qe4 {[%emt 0:00:13]} 32. Qb3 {[%emt 0:03:14]} Re7 {[%emt 0:05:56]} 33. Bb6 {[%emt 0:00:46]} Be8 {[%emt 0:00:24]} 34. Qd3 {[%emt 0:00:33]} Qf4 {[%emt 0:00:54]} 35. Rd1 {[%emt 0:05:43]} Ba4 {[%emt 0:01:08]} 36. Rd2 {[%emt 0:00:34]} Re1 {[%emt 0:00:40]} 37. Re2 {[%emt 0:01:20]} Ra1 {[%emt 0:00:11]} 38. Be3 {[%emt 0:02:43]} Qh4 {[%emt 0:00:58]} 39. f4 {[%emt 0:05:05]} Qg3 {[%emt 0:01:17]} 40. Qd2 {[%emt 0:00:00]} Rd1 {[%emt 0:00:00]} 41. Qb4 {[%emt 0:12:53]} Bc2 {[%emt 0:11:46]} 42. Bf2 {[%emt 0:01:11]} Qb3 {[%emt 0:10:46]} 43. Qxb3 {[%emt 0:01:08]} Bxb3 {[%emt 0:00:05]} 44. Re1 {[%emt 0:00:57]} Rd2 {[%emt 0:02:27]} 45. Re6 {[%emt 0:04:30]} Rd1 {[%emt 0:00:21]} 46. Be1 {[%emt 0:00:28]} Bd4+ {[%emt 0:01:50]} 47. Kh2 {[%emt 0:00:55]} Kf7 {[%emt 0:00:20]} 48. g4 {[%emt 0:01:40]} fxg4 {[%emt 0:00:35]} 49. hxg4 {[%emt 0:00:34]} g5 {[%emt 0:00:19]} 50. Bg2 {[%emt 0:03:33]} gxf4 {[%emt 0:01:01]} 51. Bb4 {[%emt 0:00:24]} Bxc4 {[%emt 0:04:12]} 52. Bxd6 {[%emt 0:00:55]} Be3 {[%emt 0:04:53]} 53. Re5 {[%emt 0:01:42]} Rd2 {[%emt 0:02:50]} 54. Kh3 {[%emt 0:02:01]} Bb5 {[%emt 0:05:21]} 55. Rf5+ {[%emt 0:01:17]} Kg6 {[%emt 0:03:56]} 56. Bxf4 {[%emt 0:00:38]} Bxf4 {[%emt 0:01:36]} 57. Rxf4 {[%emt 0:00:02]} Ra2 {[%emt 0:00:49]} 58. Rd4 {[%emt 0:02:49]} Bd7 {[%emt 0:01:43]} 59. Be4+ {[%emt 0:01:01]} Kf6 {[%emt 0:00:08]} 60. Bf5 {[%emt 0:00:39]} Ke5 {[%emt 0:00:18]} 61. Rd3 {[%emt 0:01:40]} Kd6 {[%emt 0:00:04]} 62. Bxd7 {[%emt 0:00:22]} Kxd7 {[%emt 0:00:04]} 63. Kh4 {[%emt 0:00:17]} Rh2+ {[%emt 0:00:47]} 64. Kg3 {[%emt 0:01:15]} Ra2 {[%emt 0:00:04]} 65. Kf4 {[%emt 0:00:24]} Rxa5 {[%emt 0:00:17]} 66. Kf5 {[%emt 0:00:11]} Ra4 {[%emt 0:00:12]} 67. Rh3 {[%emt 0:00:33]} Rd4 {[%emt 0:00:13]} 68. Rxh6 {[%emt 0:00:59]} Rxd5+ {[%emt 0:00:05]} 69. Kf4 {[%emt 0:01:22]} Ra5 {[%emt 0:00:06]} 70. g5 {[%emt 0:00:15]} Ke7 {[%emt 0:00:06]} 71. Rh7+ {[%emt 0:00:12]} Kf8 {[%emt 0:00:07]} 72. Ra7 {[%emt 0:00:13]} 1/2-1/2

[Event "Icelandic Open 2019"]
[Site "Akureyri"]
[Date "2019.05.26"]
[Round "2.15"]
[White "Ruelland, Geoffrey"]
[Black "Barthel, Ansgar"]
[Result "1/2-1/2"]
[ECO "B03"]
[WhiteElo "1955"]
[BlackElo "2062"]
[Annotator "NA"]
[PlyCount "91"]
[EventDate "2019.05.25"]
[EventType "swiss"]
[EventCountry "ISL"]
[SourceTitle "playchess.com"]
[Source "ChessBase"]
[SourceQuality "1"]
[TimeControl "40/5400+30:1800+30"]

1. e4 {[%emt 0:00:00]} Nf6 {[%emt 0:00:00]} 2. e5 {[%emt 0:00:17]} Nd5 {[%emt 0:00:00]} 3. d4 {[%emt 0:00:21]} d6 {[%emt 0:00:00]} 4. c4 {[%emt 0:00:33]} Nb6 {[%emt 0:00:00]} 5. exd6 {[%emt 0:00:29]} cxd6 {[%emt 0:00:00]} 6. Nc3 {[%emt 0:00:53]} g6 {[%emt 0:00:00]} 7. Be3 {[%emt 0:00:46]} Bg7 {[%emt 0:00:03]} 8. Rc1 {[%emt 0:00:43]} O-O {[%emt 0:00:06]} 9. b3 {[%emt 0:00:27]} Bf5 {[%emt 0:00:06]} 10. Be2 {[%emt 0:02:38] B03: Alekhine's Defence: Four Pawns Attack} d5 {[%emt 0:00:18]} 11. c5 {[%emt 0:01:49]} Nc8 {[%emt 0:00:04]} 12. Nf3 {[%emt 0:01:55]} (12. Bf3 e6 13. g4 Be4 14. Nxe4 dxe4 15. Bxe4 Nc6 16. Ne2 N8e7 17. O-O Qd7 {1-0 (34) Corrales Jimenez,F (2559)-Zhao,J (2610) chess.com INT 2019}) 12... Bg4 {[%emt 0:00:42]} 13. O-O {[%emt 0:03:55]} Nc6 {[%emt 0:00:08]} 14. Qd2 $146 {[%emt 0:16:28]} ({Predecessor:} 14. h3 Bxf3 15. Bxf3 e6 16. Qd2 N8e7 {½-½ (36) Keller,H (2024)-Schrems,H (2084) Freudenstadt 2016}) 14... e6 {[%emt 0:00:13]} 15. Rfd1 {[%emt 0:02:09]} N8e7 {[%emt 0:00:07]} 16. h3 {[%emt 0:23:22]} Bxf3 $1 {[%emt 0:00:07]} 17. Bxf3 {[%emt 0:00:09]} Nf5 {[%emt 0:00:05]} 18. Ne2 $1 {[%emt 0:02:42]} Nh4 {[%emt 0:00:10]} 19. Bf4 {[%emt 0:07:05]} Nxf3+ {[%emt 0:00:26]} 20. gxf3 {[%emt 0:00:09]} Qd7 {[%emt 0:12:57]} 21. Kg2 {[%emt 0:04:51]} Rfe8 {[%emt 0:01:53]} 22. Bd6 {[%emt 0:04:15]} Ne7 {[%emt 0:03:41]} 23. Bxe7 {[%emt 0:04:37]} Rxe7 {[%emt 0:01:33]} 24. f4 {[%emt 0:00:10]} f6 {[%emt 0:02:55]} 25. Rc3 {[%emt 0:02:04]} Qc6 {[%emt 0:13:27]} 26. Kg1 $11 {[%emt 0:05:02]} Rae8 {[%emt 0:10:54]} 27. Re3 {[%emt 0:01:42]} e5 {[%emt 0:10:29]} 28. dxe5 {[%emt 0:01:17]} Qxc5 {[%emt 0:00:25]} 29. Qxd5+ {[%emt 0:00:14]} Qxd5 {[%emt 0:00:04]} 30. Rxd5 {[%emt 0:00:08]} fxe5 {[%emt 0:00:06]} 31. fxe5 {[%emt 0:01:02]} Rxe5 {[%emt 0:00:49]} 32. Rexe5 {[%emt 0:01:08]} Rxe5 {[%emt 0:00:25]} 33. Rd8+ {[%emt 0:01:48]} Kf7 {[%emt 0:00:58]} 34. Kf1 {[%emt 0:02:03]} Bf6 {[%emt 0:02:44]} 35. Rd3 {[%emt 0:00:31]} Ke8 {[%emt 0:03:27]} 36. Nf4 {[%emt 0:01:46]} Rf5 {[%emt 0:16:25]} 37. Nd5 {[%emt 0:00:33]} Bh4 {[%emt 0:00:37]} 38. f3 {[%emt 0:00:20]} Re5 {[%emt 0:02:25]} 39. Rd1 {[%emt 0:03:28]} Bd8 {[%emt 0:01:35]} 40. Kf2 {[%emt 0:00:00]} Re6 {[%emt 0:00:00]} 41. f4 {[%emt 0:03:45]} Rc6 {[%emt 0:10:24]} 42. Rd2 {[%emt 0:01:26]} Rc1 {[%emt 0:03:02]} 43. Kf3 {[%emt 0:02:37]} Rh1 {[%emt 0:01:52]} 44. Kg2 {[%emt 0:00:50]} Re1 {[%emt 0:00:41]} 45. Kf3 {[%emt 0:00:39]} Rh1 {[%emt 0:00:37]} 46. Ke4 {[%emt 0:00:12]} 1/2-1/2

[Event "Icelandic Open 2019"]
[Site "Akureyri"]
[Date "2019.05.26"]
[Round "3.1"]
[White "Sokolov, Ivan"]
[Black "Gunnarsson, Jon Viktor"]
[Result "1-0"]
[ECO "B37"]
[WhiteElo "2593"]
[BlackElo "2452"]
[Annotator "RC"]
[PlyCount "80"]
[EventDate "2019.05.25"]
[EventType "swiss"]
[EventCountry "ISL"]
[SourceTitle "playchess.com"]
[Source "ChessBase"]
[SourceQuality "1"]
[TimeControl "40/5400+30:1800+30"]

1. d4 {[%emt 0:04:24]} Nf6 {[%emt 0:00:00]} 2. Nf3 {[%emt 0:00:05]} g6 {[%emt 0:00:27]} 3. c4 {[%emt 0:02:47]} c5 {[%emt 0:00:33]} 4. Nc3 {[%emt 0:00:04]} cxd4 {[%emt 0:01:35]} 5. Nxd4 {[%emt 0:00:03]} Nc6 {[%emt 0:01:45]} 6. Nc2 {[%emt 0:00:02]} Bg7 {[%emt 0:02:50]} 7. e4 {[%emt 0:01:41]} O-O {[%emt 0:16:13]} 8. Be2 {[%emt 0:00:16]} d6 {[%emt 0:01:43]} 9. O-O {[%emt 0:01:27]} b6 {[%emt 0:05:00]} 10. Be3 {[%emt 0:02:29]} Bb7 {[%emt 0:06:15]} 11. Qd2 {[%emt 0:00:52]} Rc8 {[%emt 0:09:27]} 12. f3 {[%emt 0:02:34]} a6 {[%emt 0:12:28]} 13. Kh1 {[%emt 0:06:23]} Ne5 {[%emt 0:09:50]} 14. b3 {[%emt 0:01:35]} Qc7 {[%emt 0:01:42]} 15. Bd4 {[%emt 0:08:38]} Rfd8 {[%emt 0:07:17]} 16. Rac1 {[%emt 0:04:32]} e6 {[%emt 0:02:35]} 17. Rfd1 {[%emt 0:02:35]} Nc6 {[%emt 0:06:49]} 18. Be3 {[%emt 0:03:15]} Nd7 {[%emt 0:05:12]} 19. Bg5 {[%emt 0:01:04]} f6 {[%emt 0:01:39]} 20. Bh6 {[%emt 0:02:12]} Nde5 {[%emt 0:01:23]} 21. Bxg7 {[%emt 0:01:15]} Kxg7 {[%emt 0:00:37]} 22. Ne3 {[%emt 0:01:47]} Ne7 {[%emt 0:00:53]} 23. f4 {[%emt 0:06:41]} Nf7 {[%emt 0:00:25]} 24. Bf3 {[%emt 0:05:28]} Ba8 {[%emt 0:02:18]} 25. Ne2 {[%emt 0:02:38]} e5 {[%emt 0:00:46]} 26. Bg4 {[%emt 0:00:50]} Rb8 {[%emt 0:01:13]} 27. Nd5 {[%emt 0:01:28]} Nxd5 {[%emt 0:01:37]} 28. cxd5 {[%emt 0:00:03]} Qe7 {[%emt 0:00:08]} 29. Rc3 {[%emt 0:01:18]} Re8 {[%emt 0:00:56]} 30. Be6 {[%emt 0:01:24]} Nd8 {[%emt 0:00:27]} 31. f5 {[%emt 0:00:19]} Nxe6 {[%emt 0:00:41]} 32. fxe6 {[%emt 0:00:05]} Rb7 {[%emt 0:00:42]} 33. Rdc1 {[%emt 0:00:09]} b5 {[%emt 0:00:20]} 34. b4 {[%emt 0:00:53]} Ra7 {[%emt 0:00:18]} 35. Qe3 {[%emt 0:00:39]} f5 {[%emt 0:00:30]} 36. Qb6 {[%emt 0:04:06]} Rb7 {[%emt 0:00:35]} 37. Qxa6 {[%emt 0:00:02]} fxe4 {[%emt 0:00:20]} 38. Ng3 {[%emt 0:00:32]} e3 {[%emt 0:00:44]} 39. Ne4 {[%emt 0:02:56]} Rd8 {[%emt 0:00:37]} 40. Qxb7 {[%emt 0:00:00]} Qxb7 {[%emt 0:01:10]} 1-0

[Event "Icelandic Open 2019"]
[Site "Akureyri"]
[Date "2019.05.26"]
[Round "3.3"]
[White "Stefansson, Hannes"]
[Black "Thorfinnsson, Bjorn"]
[Result "0-1"]
[ECO "C78"]
[WhiteElo "2561"]
[BlackElo "2389"]
[Annotator "ChessBase"]
[PlyCount "58"]
[EventDate "2019.05.25"]
[EventType "swiss"]
[EventCountry "ISL"]
[SourceTitle "playchess.com"]
[Source "ChessBase"]
[SourceQuality "1"]
[TimeControl "40/5400+30:1800+30"]

1. e4 {[%emt 0:00:00]} e5 {[%emt 0:00:00]} 2. Nf3 {[%emt 0:00:00]} Nc6 {[%emt 0:00:00]} 3. Bb5 {[%emt 0:00:08]} a6 {[%emt 0:00:10]} 4. Ba4 {[%emt 0:00:12]} Nf6 {[%emt 0:00:10]} 5. O-O {[%emt 0:00:21]} b5 {[%emt 0:00:08]} 6. Bb3 {[%emt 0:00:10]} Bc5 {[%emt 0:00:06]} 7. a4 {[%emt 0:06:31]} Rb8 {[%emt 0:01:09]} 8. Nxe5 {[%emt 0:07:08]} Nxe5 {[%emt 0:00:24]} 9. d4 {[%emt 0:00:04]} Bxd4 {[%emt 0:00:30]} 10. Qxd4 {[%emt 0:00:07]} d6 {[%emt 0:00:07]} 11. f3 {[%emt 0:00:10]} O-O {[%emt 0:00:49]} 12. axb5 {[%emt 0:03:33]} axb5 {[%emt 0:00:13]} 13. Rd1 {[%emt 0:03:36]} Be6 {[%emt 0:02:55]} 14. Bg5 {[%emt 0:01:12]} h6 {[%emt 0:03:13]} 15. Bh4 {[%emt 0:00:29]} c5 {[%emt 0:21:33]} 16. Qf2 {[%emt 0:09:48]} c4 {[%emt 0:05:12]} 17. Ba2 {[%emt 0:00:05]} Ra8 {[%emt 0:03:29]} 18. c3 {[%emt 0:08:11]} Nd3 {[%emt 0:03:03]} 19. Qe2 {[%emt 0:01:53]} Qb8 {[%emt 0:14:40]} 20. Bf2 {[%emt 0:07:18]} d5 {[%emt 0:01:00]} 21. exd5 {[%emt 0:12:19]} Nxd5 {[%emt 0:00:24]} 22. g3 {[%emt 0:04:29]} Re8 {[%emt 0:00:34]} 23. Na3 {[%emt 0:02:22]} Bg4 {[%emt 0:06:35]} 24. Qf1 {[%emt 0:02:18]} Bxf3 {[%emt 0:02:08]} 25. Rxd3 {[%emt 0:00:16]} cxd3 {[%emt 0:00:03]} 26. Qxd3 {[%emt 0:00:27]} Be4 {[%emt 0:00:13]} 27. Qf1 {[%emt 0:09:16]} b4 {[%emt 0:01:54]} 28. cxb4 {[%emt 0:03:14]} Qxb4 {[%emt 0:00:06]} 29. Qc1 {[%emt 0:04:08]} Rec8 {[%emt 0:00:59]} 0-1